Cogmind - Beta 13 @@@ ROGUE MODE // 2024.05.10 @ 20:53:33 Player: SlyFyer Result: Destroyed by GR-851(R) with Subdweller Machine Gun Performance ------------- Evolutions (0) 0 Regions Visited (2) 400 Robots Destroyed (22) 110 Value Destroyed (475) 475 Prototype IDs (0) 0 Alien Tech Used (0) 0 Bonus (0) 0 TOTAL SCORE: 985 Bonus ------- None Cogmind --------- Core Integrity 0/250 Matter 253/300 Energy 76/100 System Corruption 0% Temperature Cool (0) Movement Core (200) Ox3 Location -10/Subcaves Parts ------- > --- POWER (1) -------- (None) > --- PROPULSION (2) --- (None) > --- UTILITY (2) ------ Medium Storage Unit Core Shielding > --- WEAPON (2) ------- (None) > --- INVENTORY (10) --- Cooling System Large Storage Unit Medium Matter Pod (100) Improved Terrain Scanner Seismic Detector High-powered Tractor Beam Medium Laser Peak State ------------ > --- POWER ------------ Ion Engine > --- PROPULSION ------- Aluminum Leg Aluminum Leg > --- UTILITY ---------- Medium Storage Unit Core Shielding > --- WEAPON ----------- Particle Gun Assault Rifle > --- INVENTORY -------- Cooling System Medium Matter Pod Improved Terrain Scanner Seismic Detector High-powered Tractor Beam Medium Laser Assault Rifle Mining Laser Plasma Cutter [Rating: 9] Favorites ----------- Power Ion Engine Engine Ion Engine Propulsion Aluminum Leg Leg Aluminum Leg Wheel Compact Wheel Utility Medium Storage Unit Storage Medium Storage Unit Protection Core Shielding Weapon Assault Rifle Energy Gun Particle Gun Ballistic Gun Assault Rifle Special Weapon Plasma Cutter Build | -11 -10 -10 ------- Run | Yrd Mat Sub Slots Evolved . | . . . Power . | . . . Propulsion . | . . . Utility . | . . . Weapon . | . . . Parts Attached 15 | 6 7 2 Power 1 | 1 . . Engine 1 | 1 . . Core . | . . . Reactor . | . . . Propulsion 4 | 2 2 . Treads . | . . . Leg 2 | . 2 . Wheel 2 | 2 . . Hover . | . . . Flight . | . . . Utility 4 | 1 3 . Device . | . . . Storage 2 | 1 1 . Processor . | . . . Hackware . | . . . Protection 2 | . 2 . Artifact . | . . . Weapon 6 | 2 2 2 Energy Gun 1 | . 1 . Energy Cannon . | . . . Ballistic Gun 3 | 2 1 . Ballistic Cannon . | . . . Launcher . | . . . Special Weapon 2 | . . 2 Impact Weapon . | . . . Slashing Weapon . | . . . Piercing Weapon . | . . . Special Melee Weapon . | . . . Unidentified Prototypes . | . . . Parts Lost 11 | . 5 6 Power 1 | . 1 . Propulsion 4 | . 2 2 Utility . | . . . Weapon 6 | . 2 4 Highest Loss Streak 6 | . 1 6 To Critical Strikes . | . . . Average Slot Usage (%) 87 | . 87 82 Engine 10 | . 10 . Leg 15 | . 14 25 Wheel 8 | . 9 . Storage 14 | . 14 14 Protection 9 | . 9 14 Energy Gun 6 | . 6 8 Ballistic Gun 21 | . 21 14 Naked Turns . | . . . Heaviest Build 23 | 13 23 16 Greatest Support 32 | 32 32 20 Greatest Overweight (x) 6 | 1 6 1 Average Overweight (x) . | . . . Largest Inventory Capacity 10 | 8 10 10 Average Capacity 9 | 7 9 10 Most Carried 10 | 5 10 9 Average Carried 8 | 2 8 8 Final Capacity 10 | 8 10 10 Final Carried 9 | 5 9 7 Class Distribution -------------------- 100% | Mutant Dominant Class ---------------- Mutant | -10/Materials Mutant | -10/Subcaves Resources | -11 -10 -10 ----------- Run | Yrd Mat Sub Matter Collected 646 | 296 350 . Remotely . | . . . Salvage Created 812 | 121 691 . Parts 46 | 10 36 . Haulers Intercepted 2 | . 2 . Recyclers Shooed . | . . . Parts Field Recycled . | . . . Retrieved Matter . | . . . Parts Self-Destructed . | . . . Prevented . | . . . Kills | -11 -10 -10 ------- Run | Yrd Mat Sub Combat Hostiles Destroyed 13 | . 13 . Guns 13 | . 13 . Classes Destroyed 7 | 2 5 . Tunneler 3 | 3 . . Hauler 2 | . 2 . Recycler 2 | 1 1 . Operator 1 | . 1 . Watcher 1 | . 1 . Swarmer 3 | . 3 . Grunt 10 | . 10 . Best Kill Streak 5 | 4 5 . Combat Bots Only 5 | . 5 . Max Kills in Single Turn 1 | 1 1 . Gunslinging . | . . . Exploded . | . . . Melee . | . . . Uniques/NPCs Destroyed . | . . . Combat | -11 -10 -10 -------- Run | Yrd Mat Sub Hostile Shots Fired 89 | . 62 27 Missed 17 | . 9 8 Damage Taken 1092 | . 693 399 Core 259 | . 188 71 Absorbed by Shields . | . . . Redirected to Shielding 42 | . 26 16 Core Remaining (%) 100 | 100 . . Volleys Fired 88 | 9 69 10 Largest 2 | 2 2 2 Hottest 85 | 40 85 85 Shots Fired 165 | 18 135 12 Gun 162 | 18 135 9 Cannon . | . . . Launcher . | . . . Special 3 | . . 3 Kinetic 128 | 18 102 8 Thermal 37 | . 33 4 Explosive . | . . . Electromagnetic . | . . . Robot Hit Streak 16 | 7 16 4 Robot Miss Streak 9 | 1 9 2 Penetration Max . | . . . Secondary Targets 1 | . 1 . Max Gunslinging Chain 1 | . 1 . Shots Hit Robots 109 | 13 88 8 Core Hits 41 | 7 34 . Critical Kills . | . . . Critical Parts Destroyed . | . . . Critical Strikes 2 | . 2 . Burn 2 | . 2 . Melee Attacks . | . . . Impact . | . . . Slashing . | . . . Piercing . | . . . Sneak Attacks . | . . . Combat Hostiles . | . . . Follow-up Attacks . | . . . Damage Inflicted 1307 | 133 1050 124 Guns 1275 | 133 1050 92 Cannons . | . . . Explosions . | . . . Melee . | . . . Ramming . | . . . Kinetic 1016 | 133 791 92 Thermal 291 | . 259 32 Explosive . | . . . Electromagnetic . | . . . Impact . | . . . Slashing . | . . . Piercing . | . . . Highest Corruption . | . . . Average Corruption . | . . . Corruption Purged . | . . . Corruption Blocked . | . . . Overload Shots . | . . . Overflow Damage . | . . . Projectiles . | . . . Explosions . | . . . Melee . | . . . Knockbacks . | . . . Impact . | . . . Kinetic . | . . . Secondary . | . . . Self-Inflicted Damage . | . . . Shots . | . . . Rammed . | . . . Targets Rammed . | . . . Kicked . | . . . Crushed . | . . . Highest Temperature 232 | . 232 . Average Temperature 49 | . 49 . Received Heat Transfer 351 | . 351 . Effects 1 | . 1 . Energy Bleed 1 | . 1 . Siege Activations . | . . . Robots Corrupted . | . . . Combat Hostiles . | . . . Parts Fried . | . . . Impact Corruptions . | . . . Robots Melted . | . . . Combat Hostiles . | . . . Parts Melted 1 | . 1 . Heat Transferred 888 | . 777 111 Parts Sabotaged . | . . . Parts Stolen . | . . . Parts Stripped . | . . . Power Chain Reactions . | . . . Alert | -11 -10 -10 ------- Run | Yrd Mat Sub Peak Influence 230 | 20 230 . Initial 13 | . 13 . Average 107 | 6 115 . Maximum Alert Level 1 | . 1 . Low Security (%) 93 | 100 92 . Level 1 6 | . 7 . Level 2 . | . . . Level 3 . | . . . Level 4 . | . . . Level 5 . | . . . High Security . | . . . Max Security . | . . . Squads Dispatched 3 | . 3 . Investigation 1 | . 1 . Extermination . | . . . Reinforcement 2 | . 2 . Assault . | . . . Garrison . | . . . Intercept . | . . . Searches Triggered . | . . . Construction Impeded . | . . . Haulers Reinforced . | . . . Active Scanning Responses . | . . . Cargo Convoy Interrupts . | . . . Stealth | -11 -10 -10 --------- Run | Yrd Mat Sub Distress Signals 1 | . 1 . Communications Jammed . | . . . Distress Signals . | . . . Times Spotted 28 | . 26 2 Peak Tracking Total 4 | . 4 2 Tactical Retreats 1 | . 1 . Traps | -11 -10 -10 ------- Run | Yrd Mat Sub Traps Triggered 2 | . 2 . Indirectly . | . . . Trap Hack Attempts . | . . . Triggered . | . . . Disarmed . | . . . Reprogrammed . | . . . Reused . | . . . Traps Extracted . | . . . Installed . | . . . Triggered . | . . . Machines | -11 -10 -10 ---------- Run | Yrd Mat Sub Machines Disabled 1 | . 1 . Max in Single Turn 1 | . 1 . Machines Repaired . | . . . Machines Dismantled . | . . . Machines Sabotaged . | . . . Overloaded Fab Kills . | . . . Hacking | -11 -10 -10 --------- Run | Yrd Mat Sub Machines Accessed 1 | . 1 . Terminals . | . . . Fabricators . | . . . Repair Stations . | . . . Recycling Units 1 | . 1 . Scanalyzers . | . . . Garrison Access . | . . . Total Hacks 1 | . 1 . Successful 1 | . 1 . Failed . | . . . Catastrophic . | . . . Database Lockouts . | . . . Manual 1 | . 1 . Terminals . | . . . Fabricators . | . . . Repair Stations . | . . . Recycling Units 1 | . 1 . Scanalyzers . | . . . Garrison Access . | . . . Terminal Hacks . | . . . Fabricator Hacks . | . . . Repair Station Hacks . | . . . Recycling Unit Hacks . | . . . Scanalyzer . | . . . Garrison Access Hacks . | . . . Unauthorized Hacks 1 | . 1 . Terminals . | . . . Fabricators . | . . . Repair Stations . | . . . Recycling Units 1 | . 1 . Tunnel 1 | . 1 . Scanalyzers . | . . . Garrison Access . | . . . Data Cores Recovered . | . . . Used . | . . . Hacking Detections . | . . . Full Trace Events . | . . . Feedback Events . | . . . Feedback Blocked . | . . . Robot Schematics Acquired . | . . . Robots Built . | . . . Authchips . | . . . Time . | . . . Total Robot Build Rating . | . . . Part Schematics Acquired . | . . . Parts Built . | . . . Authchips . | . . . Time . | . . . Total Part Build Rating . | . . . Parts Repaired . | . . . Time . | . . . Parts Recycled . | . . . Recycled Matter . | . . . Retrieved Matter . | . . . Retrieved Components . | . . . Parts Scanalyzed . | . . . Part Schematics Acquired . | . . . Parts Damaged . | . . . Bothacking | -11 -10 -10 ------------ Run | Yrd Mat Sub Used RIF Installer . | . . . Robots Hacked . | . . . Non-combat . | . . . Combat . | . . . Robot Hacks Applied . | . . . Relay Couplers Released . | . . . Fabnet Peak Effective % . | . . . Robots Rewired . | . . . Allies Hacked . | . . . Hacks Repelled . | . . . Allies | -11 -10 -10 -------- Run | Yrd Mat Sub Total Allies . | . . . Largest Group . | . . . Highest-Rated Group . | . . . Highest-Rated Ally . | . . . Total Orders . | . . . Ally Attacks . | . . . Total Damage . | . . . Kills . | . . . Allies Corrupted . | . . . Allies Melted . | . . . Intel | -11 -10 -10 ------- Run | Yrd Mat Sub Robot Analysis Total . | . . . Derelict Logs Recovered . | . . . Drone Launches . | . . . Drone Recoveries . | . . . Exploration | -11 -10 -10 ------------- Run | Yrd Mat Sub Turns Passed 1576 | 113 1408 55 Spaces Moved 990 | 80 889 21 Core 27 | 18 9 . Treads . | . . . Legs 488 | . 467 21 Wheels 475 | 62 413 . Hover . | . . . Flight . | . . . Fastest Speed 50 | 50 100 120 Average Speed 124 | 90 128 123 Slowest Speed 350 | 100 350 190 Overloaded Moves . | . . . Propulsion Burnouts . | . . . Robots Hopped . | . . . Cave-ins Triggered . | . . . Exploration Rate (%) 33 | 4 92 5 Regions Visited 2 Branch Regions 1 Pre-discovered Areas 1 | . 1 . Known Exits Taken . | . . . Unknown Exits Taken 2 | 1 1 . Scrap Searched . | . . . Spaces Dug . | . . . Terrain Destroyed . | . . . Melee . | . . . Projectile . | . . . AOE . | . . . Terrain Rammed . | . . . Walls Destroyed . | . . . Machines Disabled . | . . . Actions | -11 -10 -10 --------- Run | Yrd Mat Sub Total 1170 | 102 1031 37 Wait 55 | . 51 4 Move 988 | 79 888 21 Hop . | . . . Pick Up 18 | 8 10 . Fast Attach 8 | 3 5 . Attach 7 | 3 2 2 Detach . | . . . Swap . | . . . Drop 6 | . 6 . Fire 88 | 9 69 10 Melee . | . . . Ram . | . . . Kick . | . . . Crush . | . . . Escape Stasis . | . . . Rewire . | . . . Trap . | . . . Miscellaneous . | . . . Route ------- -11/Scrapyard -10/Materials (discovered 5 exits: [*Mat x3] / [*Min] / [*Sub]) -10/Subcaves History --------- Turn | Location | Event 7 | -11/Scrapyard | Discovered new exit (range 16) 114 | -11/Scrapyard | Entered Materials 180 | -10/Materials | Discovered new exit (range 9) 324 | -10/Materials | Build established: Mutant 427 | -10/Materials | Discovered new exit (range 5) 600 | -10/Materials | Discovered new exit (range 8) 952 | -10/Materials | Core integrity fell below 50% 1242 | -10/Materials | Discovered new exit (range 16) 1498 | -10/Materials | Discovered new exit (range 11) 1522 | -10/Materials | Entered Subcaves 1552 | -10/Subcaves | Core integrity fell below 20% 1577 | -10/Subcaves | Destroyed by GR-851(R) with Subdweller Machine Gun Last Messages --------------- 01321_ K-01 Serf collects debris. 01322_ Acquired 12 matter. 01323_ K-01 Serf collects debris. 01361_ O-16 Technician: "IFF HANDSHAKE FAILED. SECURING TERMINAL." 01363_ Destroyed Datajack. 01378_ ALERT: Hostiles spotted, dispatching reinforcements to Terminal M005. 01402_ G-34 Mercenary suffers critical hit (Burn). 01408_ G-34 Mercenary destroyed. 01413_ K-01 Serf collects debris. 01498_ EXIT=FOUND LOCATION=UNKNOWN AMBIENT_HEAT=-10 GOAL=ESCAPE 01553_ Particle Gun destroyed. 01561_ Mining Laser destroyed. 01561_ Aluminum Leg destroyed. 01573_ Assault Rifle destroyed. 01577_ Plasma Cutter destroyed. [Achievement: Back For More] Map ----- +----------------------------------------------------+ | ?????????????????????????????????????????????????? | | ?????????????????????????????????????????????????? | | ?????????????????????????????????????????????????? | | ?????????????????????????????????????????????????? | | ?????????????????????????????????????????????????? | | ?????????????????????????????????????????????????? | | ?????????????????????????????????????????????????? | | ?????????????????????????????????????????????????? | | ??????????## ????????????????????????????????????? | | ?????????? ????????????????????????????????????? | | ?????????# ????????????????????????????????????? | | ?????????# #????????????????????????????????????? | | ????????? #??????????????""????????????????????? | | ?????????# #??????????????"""#??????????????????? | | ?????????# ##????????????? ""???????????????????? | | ###?????## ##???????????? ##### ??????????????? | | ???## #???????????? # ???????????????? | | ?# ??# #??????###??# ???????????????? | | ?# #?# #??????# ### ????????????????? | | ##" ## #?????## ?????????????????? | | #"" #?????## ???????????????????? | | "" #????## #?????????????????????? | | " ###### ##????????????????????? | | ## # ##???????????????????? | | RR ##??????????????????? | | @ #??????????????????? | | ## # #### ## ????????????? | | ?## ###??### #?? ## ????????? | | ??# ## #??????# #??? #??????????????? | | ??### ####?????# #????? ????????????? | | ????## ???????# ##?????? " "??????????? | | ?????## ???????# ###????????"""? #??????????? | | ??????####???????# #???????????? ?????????????? | | ?????????????????#### #??????????????????????????? | | ????????????????????###??????????????????????????? | | ?????????????????????????????????????????????????? | | ?????????????????????????????????????????????????? | | ?????????????????????????????????????????????????? | | ?????????????????????????????????????????????????? | | ?????????????????????????????????????????????????? | | ?????????????????????????????????????????????????? | | ?????????????????????????????????????????????????? | | ?????????????????????????????????????????????????? | | ?????????????????????????????????????????????????? | | ?????????????????????????????????????????????????? | | ?????????????????????????????????????????????????? | | ?????????????????????????????????????????????????? | | ?????????????????????????????????????????????????? | | ?????????????????????????????????????????????????? | | ?????????????????????????????????????????????????? | +----------------------------------------------------+ Best States ------------- Heat Dissipation 25 Energy Generation 10 Energy Capacity 250 Matter Stores 300 Matter Capacity 300 Sight Range 16 Terrain Scan Density 10 Core Shielding 20 Propulsion Shielding 33 Evasion (%) 55 Item Schematics ----------------- None Robot Schematics ------------------ None Fabricated ------------ Nothing Alien Tech Used ----------------- None Achievements -------------- Back For More Challenges ------------ None Game ------ Seed RagnarokMasterKinecellerator Manual? 0 Play Time 00:08:41 Cumulative 91.2 hours Start 2024.05.10 @ 16:45:31 End 2024.05.10 @ 20:53:33 Sessions 3 Manual Loads 0 Difficulty Rogue Special Mode None Game No. 50 Rogue 20 Adventurer 30 Explorer 0 Win Type - Total 3 Types 2/1/0/0/0/0/0/0/0 Lore% 52 Gallery% 67 Achievement% 62 Wizard Run 0 Options --------- Layout 0 ASCII 0 Keyboard 0 Movement Arrows Keybinds 0 Fullscreen 0 Font 16/SmallcapsGlow Map View 76x50 Zoom Use 0% Tactical HUD 1 Map Filters NONE Filters NONE Steam 1 RUN: e64d298a-d636-4319-b981-da9e03cb8db5